Cogmind - Beta 11.1 @@@ ROGUE MODE // 2022.05.14 @ 17:57:58 Player: laserbat Result: Self-destructed Performance ------------- Evolutions (5) 2500 Regions Visited (10) 2000 Robots Destroyed (5) 25 Value Destroyed (66) 66 Prototype IDs (0) 0 Alien Tech Used (0) 0 Bonus (700) 700 TOTAL SCORE: 5291 Bonus ------- Pacifist 200 Entered DSFs 500 Cogmind --------- Core Integrity 990/1000 Matter 126/300 Energy 315/315 System Corruption 14% Temperature Cool (30) Movement Flying (28) Location -5/Factory Parts ------- > --- POWER (1) -------- Neutrino Core > --- PROPULSION (6) --- Nuclear Pulse Thruster Nuclear Pulse Thruster Field Propulsion Drive Field Propulsion Drive Field Propulsion Drive Field Propulsion Drive > --- UTILITY (8) ------ Structural Scanner Visual Processing Unit Advanced Terrain Scan Processor > --- WEAPON (2) ------- (None) > --- INVENTORY (5) ---- Nuclear Core Flight Unit Improved Remote Datajack Peak State ------------ > --- POWER ------------ Neutrino Core > --- PROPULSION ------- Nuclear Pulse Thruster Nuclear Pulse Thruster Field Propulsion Drive Field Propulsion Drive Field Propulsion Drive Field Propulsion Drive > --- UTILITY ---------- Structural Scanner Visual Processing Unit Advanced Terrain Scan Processor Authchip [Power] > --- WEAPON ----------- (None) > --- INVENTORY -------- Nuclear Core Flight Unit Field Propulsion Drive Field Propulsion Drive Improved Remote Datajack [Rating: 53] Favorites ----------- Power Nuclear Core Power Core Nuclear Core Propulsion Flight Unit Flight Unit Flight Unit Utility Structural Scanner Device Structural Scanner Processor Visual Processing Unit Hackware Authchip [Power] Weapon Grenade Launcher Launcher Grenade Launcher Special Weapon Improved Remote Datajack Build | -11 -10 -9 -8 -8 -8 -6 -6 -5 -5 -5 ------- Run | Scr Mat Mat Mat Sto Rec Fac DSF Fac Was Fac Slots Evolved 10 | . . 2 2 . . 4 . 2 . . Power . | . . . . . . . . . . . Propulsion 4 | . . 2 . . . 2 . . . . Utility 6 | . . . 2 . . 2 . 2 . . Weapon . | . . . . . . . . . . . Parts Attached 23 | . 3 6 . . . . 2 7 5 . Power 3 | . . 1 . . . . . 1 1 . Engine . | . . . . . . . . . . . Core 3 | . . 1 . . . . . 1 1 . Reactor . | . . . . . . . . . . . Propulsion 14 | . 2 3 . . . . 2 4 3 . Treads . | . . . . . . . . . . . Leg . | . . . . . . . . . . . Wheel . | . . . . . . . . . . . Hover . | . . . . . . . . . . . Flight 14 | . 2 3 . . . . 2 4 3 . Utility 4 | . . 2 . . . . . 1 1 . Device 1 | . . 1 . . . . . . . . Storage . | . . . . . . . . . . . Processor 2 | . . 1 . . . . . 1 . . Hackware 1 | . . . . . . . . . 1 . Protection . | . . . . . . . . . . . Artifact . | . . . . . . . . . . . Weapon 2 | . 1 . . . . . . 1 . . Energy Gun . | . . . . . . . . . . . Energy Cannon . | . . . . . . . . . . . Ballistic Gun . | . . . . . . . . . . . Ballistic Cannon . | . . . . . . . . . . . Launcher 1 | . 1 . . . . . . . . . Special Weapon 1 | . . . . . . . . 1 . . Impact Weapon . | . . . . . . . . . . . Slashing Weapon . | . . . . . . . . . . . Piercing Weapon . | . . . . . . . . . . . Special Melee Weapon . | . . . . . . . . . . . Unidentified Prototypes . | . . . . . . . . . . . Corrupted Parts 1 | . . . . . . . . . 1 . System Corruption 5 | . . . . . . . . . 5 . Parts Lost 5 | . . 2 . . . . . . 3 . Power . | . . . . . . . . . . . Propulsion 3 | . . 1 . . . . . . 2 . Utility 1 | . . . . . . . . . 1 . Weapon 1 | . . 1 . . . . . . . . Highest Loss Streak 3 | . . 2 . . . . . . 3 . To Critical Strikes . | . . . . . . . . . . . Average Slot Usage (%) 50 | . 21 48 63 63 63 46 60 52 56 58 Core 5 | . . 7 9 9 9 6 6 5 5 5 Flight 32 | . 18 31 36 36 36 26 40 35 32 35 Device 4 | . . 1 9 9 9 6 6 5 5 5 Processor 5 | . . 1 9 9 9 6 6 5 11 11 Launcher 1 | . 2 6 . . . . . . . . Naked Turns 21 | . 21 . . . . . . . . . Heaviest Build 19 | . 3 10 8 8 8 8 8 19 15 15 Greatest Support 40 | 3 8 16 16 16 16 16 28 40 40 40 Greatest Overweight (x) . | . . . . . . . . . . . Average Overweight (x) . | . . . . . . . . . . . Largest Inventory Capacity 5 | 5 5 5 5 5 5 5 5 5 5 5 Average Capacity 5 | 5 5 5 5 5 5 5 5 5 5 5 Most Carried 5 | 4 5 5 2 2 2 2 2 5 5 3 Average Carried 3 | 2 3 3 2 2 2 2 2 3 4 3 Final Capacity 5 | 5 5 5 5 5 5 5 5 5 5 5 Final Carried 5 | . 5 2 2 2 2 2 2 5 3 3 Class Distribution -------------------- 73% | Sprinter 26% | Mutant Dominant Class ---------------- Mutant | -10/Materials Mutant | -9/Materials Sprinter | -8/Materials Sprinter | -8/Storage Sprinter | -8/Recycling Sprinter | -6/Factory Sprinter | -6/DSF Sprinter | -5/Factory Sprinter | -5/Waste Sprinter | -5/Factory Resources | -11 -10 -9 -8 -8 -8 -6 -6 -5 -5 -5 ----------- Run | Scr Mat Mat Mat Sto Rec Fac DSF Fac Was Fac Matter Collected 273 | 200 . . . . 73 . . . . . Remotely . | . . . . . . . . . . . Salvage Created 40 | . . 40 . . . . . . . . Parts 8 | . . 8 . . . . . . . . Haulers Intercepted . | . . . . . . . . . . . Recyclers Shooed . | . . . . . . . . . . . Parts Field Recycled . | . . . . . . . . . . . Retrieved Matter . | . . . . . . . . . . . Parts Self-Destructed . | . . . . . . . . . . . Prevented . | . . . . . . . . . . . Kills | -11 -10 -9 -8 -8 -8 -6 -6 -5 -5 -5 ------- Run | Scr Mat Mat Mat Sto Rec Fac DSF Fac Was Fac Combat Hostiles Destroyed 4 | . . 4 . . . . . . . . AOE 4 | . . 4 . . . . . . . . Classes Destroyed 2 | . . 2 . . . . . . . . Operator 1 | . . 1 . . . . . . . . Swarmer 4 | . . 4 . . . . . . . . Best Kill Streak 4 | . . 4 . . . . . . . . Combat Bots Only 4 | . . 4 . . . . . . . . Max Kills in Single Turn 3 | . . 3 . . . . . . . . Gunslinging . | . . . . . . . . . . . Exploded 3 | . . 3 . . . . . . . . Melee . | . . . . . . . . . . . Uniques/NPCs Destroyed . | . . . . . . . . . . . Combat | -11 -10 -9 -8 -8 -8 -6 -6 -5 -5 -5 -------- Run | Scr Mat Mat Mat Sto Rec Fac DSF Fac Was Fac Damage Taken 352 | . 28 112 102 . . . 42 27 41 . Core 144 | . 15 20 57 . . . 42 . 10 . Absorbed by Shields . | . . . . . . . . . . . Core Remaining (%) 94 | 100 94 95 . . 89 . 95 . . . Volleys Fired 4 | . . 3 . . . . . 1 . . Largest 1 | . . 1 . . . . . 1 . . Hottest 30 | . . 30 . . . . . 7 . . Shots Fired 4 | . . 3 . . . . . 1 . . Gun . | . . . . . . . . . . . Cannon . | . . . . . . . . . . . Launcher 3 | . . 3 . . . . . . . . Special 1 | . . . . . . . . 1 . . Kinetic . | . . . . . . . . . . . Thermal . | . . . . . . . . . . . Explosive 3 | . . 3 . . . . . . . . Electromagnetic . | . . . . . . . . . . . Robot Hit Streak 2 | . . 1 . . . . . 2 . . Robot Miss Streak 1 | . . 1 . . . . . . . . Penetration Max . | . . . . . . . . . . . Secondary Targets . | . . . . . . . . . . . Shots Hit Robots 3 | . . 2 . . . . . 1 . . Core Hits 7 | . . 7 . . . . . . . . Critical Kills . | . . . . . . . . . . . Critical Parts Destroyed . | . . . . . . . . . . . Critical Strikes . | . . . . . . . . . . . Melee Attacks . | . . . . . . . . . . . Impact . | . . . . . . . . . . . Slashing . | . . . . . . . . . . . Piercing . | . . . . . . . . . . . Sneak Attacks . | . . . . . . . . . . . Combat Hostiles . | . . . . . . . . . . . Follow-up Attacks . | . . . . . . . . . . . Damage Inflicted 195 | . . 195 . . . . . . . . Guns . | . . . . . . . . . . . Cannons . | . . . . . . . . . . . Explosions 195 | . . 195 . . . . . . . . Melee . | . . . . . . . . . . . Ramming . | . . . . . . . . . . . Kinetic . | . . . . . . . . . . . Thermal . | . . . . . . . . . . . Explosive 195 | . . 195 . . . . . . . . Electromagnetic . | . . . . . . . . . . . Impact . | . . . . . . . . . . . Slashing . | . . . . . . . . . . . Piercing . | . . . . . . . . . . . Highest Corruption 14 | . . . . . . . . . 14 14 Average Corruption 12 | . . . . . . . . . 11 14 Corruption Purged . | . . . . . . . . . . . Corruption Blocked . | . . . . . . . . . . . Effects 4 | . . . . . . . . . 4 . Message Errors 2 | . . . . . . . . . 2 . Energy Discharges 1 | . . . . . . . . . 1 . Misdirections 1 | . . . . . . . . . 1 . Overload Shots . | . . . . . . . . . . . Overflow Damage . | . . . . . . . . . . . Projectiles . | . . . . . . . . . . . Explosions . | . . . . . . . . . . . Melee . | . . . . . . . . . . . Knockbacks . | . . . . . . . . . . . Impact . | . . . . . . . . . . . Kinetic . | . . . . . . . . . . . Secondary . | . . . . . . . . . . . Self-Inflicted Damage 23 | . . 23 . . . . . . . . Shots 2 | . . 2 . . . . . . . . Rammed . | . . . . . . . . . . . Targets Rammed . | . . . . . . . . . . . Kicked . | . . . . . . . . . . . Crushed . | . . . . . . . . . . . Highest Temperature 38 | . . 1 29 . . . . 38 16 30 Average Temperature 13 | . . 1 12 . . . . 17 7 16 Received Heat Transfer 93 | . . 30 63 . . . . . . . Siege Activations . | . . . . . . . . . . . Robots Corrupted . | . . . . . . . . . . . Combat Hostiles . | . . . . . . . . . . . Parts Fried . | . . . . . . . . . . . Impact Corruptions . | . . . . . . . . . . . Robots Melted . | . . . . . . . . . . . Combat Hostiles . | . . . . . . . . . . . Parts Melted . | . . . . . . . . . . . Heat Transferred . | . . . . . . . . . . . Parts Sabotaged . | . . . . . . . . . . . Parts Stolen . | . . . . . . . . . . . Parts Stripped . | . . . . . . . . . . . Power Chain Reactions . | . . . . . . . . . . . Missiles Intercepted . | . . . . . . . . . . . Alert | -11 -10 -9 -8 -8 -8 -6 -6 -5 -5 -5 ------- Run | Scr Mat Mat Mat Sto Rec Fac DSF Fac Was Fac Peak Influence 635 | . 84 308 175 103 84 635 444 383 164 93 Initial 635 | . . 35 130 73 39 635 444 233 134 93 Average 194 | . 17 202 154 80 60 635 444 298 136 93 Maximum Alert Level 2 | . . 1 . . . 2 2 1 . . Low Security (%) 53 | 100 100 41 100 100 100 . . . 100 100 Level 1 40 | . . 58 . . . . . 100 . . Level 2 6 | . . . . . . 100 100 . . . Level 3 . | . . . . . . . . . . . Level 4 . | . . . . . . . . . . . Level 5 . | . . . . . . . . . . . High Security . | . . . . . . . . . . . Max Security . | . . . . . . . . . . . Squads Dispatched 5 | . . 2 2 . . . . 1 . . Investigation 2 | . . 1 1 . . . . . . . Extermination . | . . . . . . . . . . . Reinforcement 3 | . . 1 1 . . . . 1 . . Assault . | . . . . . . . . . . . Garrison . | . . . . . . . . . . . Intercept . | . . . . . . . . . . . Searches Triggered . | . . . . . . . . . . . Construction Impeded . | . . . . . . . . . . . Haulers Reinforced . | . . . . . . . . . . . Active Scanning Responses . | . . . . . . . . . . . Cargo Convoy Interrupts . | . . . . . . . . . . . Stealth | -11 -10 -9 -8 -8 -8 -6 -6 -5 -5 -5 --------- Run | Scr Mat Mat Mat Sto Rec Fac DSF Fac Was Fac Distress Signals 1 | . . . . . . . . 1 . . Communications Jammed . | . . . . . . . . . . . Distress Signals . | . . . . . . . . . . . Times Spotted 58 | . 5 15 13 5 4 . 1 6 5 4 Peak Tracking Total 12 | . 5 9 12 7 4 . 1 7 5 4 Tactical Retreats 4 | . 1 1 . . . . . 2 . . Traps | -11 -10 -9 -8 -8 -8 -6 -6 -5 -5 -5 ------- Run | Scr Mat Mat Mat Sto Rec Fac DSF Fac Was Fac Traps Triggered 2 | . . . . . . . . 2 . . Indirectly . | . . . . . . . . . . . Trap Hack Attempts . | . . . . . . . . . . . Triggered . | . . . . . . . . . . . Disarmed . | . . . . . . . . . . . Reprogrammed . | . . . . . . . . . . . Reused . | . . . . . . . . . . . Traps Extracted . | . . . . . . . . . . . Installed . | . . . . . . . . . . . Triggered . | . . . . . . . . . . . Machines | -11 -10 -9 -8 -8 -8 -6 -6 -5 -5 -5 ---------- Run | Scr Mat Mat Mat Sto Rec Fac DSF Fac Was Fac Machines Disabled 1 | . . 1 . . . . . . . . Max in Single Turn 1 | . . 1 . . . . . . . . Machines Sabotaged . | . . . . . . . . . . . Garrisons Compromised . | . . . . . . . . . . . Overloaded Fab Kills . | . . . . . . . . . . . Hacking | -11 -10 -9 -8 -8 -8 -6 -6 -5 -5 -5 --------- Run | Scr Mat Mat Mat Sto Rec Fac DSF Fac Was Fac Machines Accessed 6 | . 1 2 1 . . 1 . 1 . . Terminals 6 | . 1 2 1 . . 1 . 1 . . Fabricators . | . . . . . . . . . . . Repair Stations . | . . . . . . . . . . . Recycling Units . | . . . . . . . . . . . Scanalyzers . | . . . . . . . . . . . Garrison Access . | . . . . . . . . . . . Total Hacks 18 | . 4 8 3 . . 1 . 2 . . Successful 5 | . 2 2 . . . 1 . . . . Failed 13 | . 2 6 3 . . . . 2 . . Catastrophic 1 | . . 1 . . . . . . . . Database Lockouts . | . . . . . . . . . . . Manual 18 | . 4 8 3 1 . . . 2 . . Terminals 18 | . 4 8 3 . . 1 . 2 . . Fabricators . | . . . . . . . . . . . Repair Stations . | . . . . . . . . . . . Recycling Units . | . . . . . . . . . . . Scanalyzers . | . . . . . . . . . . . Garrison Access . | . . . . . . . . . . . Terminal Hacks 2 | . 1 . . . . 1 . . . . Open DSF 1 | . . . . . . 1 . . . . Level Access Points 1 | . 1 . . . . . . . . . Fabricator Hacks . | . . . . . . . . . . . Repair Station Hacks . | . . . . . . . . . . . Recycling Unit Hacks . | . . . . . . . . . . . Scanalyzer . | . . . . . . . . . . . Garrison Access Hacks . | . . . . . . . . . . . Unauthorized Hacks 3 | . 1 2 . . . . . . . . Terminals 3 | . 1 2 . . . . . . . . Botnet 3 | . 1 2 . . . . . . . . Fabricators . | . . . . . . . . . . . Repair Stations . | . . . . . . . . . . . Recycling Units . | . . . . . . . . . . . Scanalyzers . | . . . . . . . . . . . Garrison Access . | . . . . . . . . . . . Data Cores Recovered 1 | . . 1 . . . . . . . . Used . | . . . . . . . . . . . Hacking Detections 6 | . 1 2 1 1 . . . 1 . . Full Trace Events 2 | . . 1 1 . . . . . . . Feedback Events . | . . . . . . . . . . . Feedback Blocked . | . . . . . . . . . . . Robot Schematics Acquired . | . . . . . . . . . . . Robots Built . | . . . . . . . . . . . Authchips . | . . . . . . . . . . . Time . | . . . . . . . . . . . Total Robot Build Rating . | . . . . . . . . . . . Part Schematics Acquired . | . . . . . . . . . . . Parts Built . | . . . . . . . . . . . Authchips . | . . . . . . . . . . . Time . | . . . . . . . . . . . Total Part Build Rating . | . . . . . . . . . . . Parts Repaired . | . . . . . . . . . . . Time . | . . . . . . . . . . . Parts Recycled . | . . . . . . . . . . . Recycled Matter . | . . . . . . . . . . . Retrieved Matter . | . . . . . . . . . . . Retrieved Components . | . . . . . . . . . . . Parts Scanalyzed . | . . . . . . . . . . . Part Schematics Acquired . | . . . . . . . . . . . Parts Damaged . | . . . . . . . . . . . Bothacking | -11 -10 -9 -8 -8 -8 -6 -6 -5 -5 -5 ------------ Run | Scr Mat Mat Mat Sto Rec Fac DSF Fac Was Fac Used RIF Installer . | . . . . . . . . . . . Robots Hacked 1 | . . . . . . . . 1 . . Non-combat 1 | . . . . . . . . 1 . . Combat . | . . . . . . . . . . . Robot Hacks Applied 1 | . . . . . . . . 1 . . find_chute 1 | . . . . . . . . 1 . . Relay Couplers Released . | . . . . . . . . . . . Fabnet Peak Effective % . | . . . . . . . . . . . Robots Rewired . | . . . . . . . . . . . Allies Hacked . | . . . . . . . . . . . Hacks Repelled . | . . . . . . . . . . . Allies | -11 -10 -9 -8 -8 -8 -6 -6 -5 -5 -5 -------- Run | Scr Mat Mat Mat Sto Rec Fac DSF Fac Was Fac Total Allies . | . . . . . . . . . . . Largest Group . | . . . . . . . . . . . Highest-Rated Group . | . . . . . . . . . . . Highest-Rated Ally . | . . . . . . . . . . . Total Orders . | . . . . . . . . . . . Ally Attacks . | . . . . . . . . . . . Total Damage . | . . . . . . . . . . . Kills . | . . . . . . . . . . . Allies Corrupted . | . . . . . . . . . . . Allies Melted . | . . . . . . . . . . . Intel | -11 -10 -9 -8 -8 -8 -6 -6 -5 -5 -5 ------- Run | Scr Mat Mat Mat Sto Rec Fac DSF Fac Was Fac Robot Analysis Total . | . . . . . . . . . . . Derelict Logs Recovered . | . . . . . . . . . . . Drone Launches . | . . . . . . . . . . . Drone Recoveries . | . . . . . . . . . . . Exploration | -11 -10 -9 -8 -8 -8 -6 -6 -5 -5 -5 ------------- Run | Scr Mat Mat Mat Sto Rec Fac DSF Fac Was Fac Turns Passed 449 | 3 56 78 26 18 39 9 19 137 41 23 Spaces Moved 1289 | 1 114 188 83 56 125 27 62 447 107 79 Core 32 | 1 31 . . . . . . . . . Treads . | . . . . . . . . . . . Legs . | . . . . . . . . . . . Wheels . | . . . . . . . . . . . Hover . | . . . . . . . . . . . Flight 1257 | . 83 188 83 56 125 27 62 447 107 79 Fastest Speed 25 | 50 37 31 31 31 31 31 25 25 28 28 Average Speed 29 | 50 40 34 31 31 31 31 25 26 28 28 Slowest Speed 50 | 50 50 37 31 31 31 31 31 28 35 28 Overloaded Moves . | . . . . . . . . . . . Propulsion Burnouts . | . . . . . . . . . . . Robots Hopped 12 | . . 2 1 . 1 . . 8 . . Cave-ins Triggered . | . . . . . . . . . . . Exploration Rate (%) 29 | 2 36 27 16 13 36 1 87 19 88 3 Regions Visited 10 Branch Regions 2 Pre-discovered Areas . | . . . . . . . . . . . Known Exits Taken 2 | . 1 . . . . 1 . . . . Unknown Exits Taken 5 | 1 . 1 1 1 1 . . . . . Scrap Searched . | . . . . . . . . . . . Spaces Dug . | . . . . . . . . . . . Terrain Destroyed 25 | . . 25 . . . . . . . . Melee . | . . . . . . . . . . . Projectile . | . . . . . . . . . . . AOE 25 | . . 25 . . . . . . . . Terrain Rammed . | . . . . . . . . . . . Walls Destroyed . | . . . . . . . . . . . Machines Disabled . | . . . . . . . . . . . Actions | -11 -10 -9 -8 -8 -8 -6 -6 -5 -5 -5 --------- Run | Scr Mat Mat Mat Sto Rec Fac DSF Fac Was Fac Total 1323 | 5 121 194 81 55 123 26 63 461 115 79 Wait 4 | . . . . . . . . . 4 . Move 1257 | . 113 183 80 55 122 26 61 432 106 79 Hop 11 | . . 2 1 . 1 . . 7 . . Pick Up 8 | . 5 . . . . . . 3 . . Fast Attach 12 | . 3 3 . . . . 2 1 3 . Attach 6 | . . 3 . . . . . 1 2 . Detach 1 | . . . . . . . . 1 . . Swap 5 | . . . . . . . . 5 . . Drop 10 | 5 . . . . . . . 5 . . Fire 4 | . . 3 . . . . . 1 . . Melee . | . . . . . . . . . . . Ram . | . . . . . . . . . . . Kick . | . . . . . . . . . . . Crush . | . . . . . . . . . . . Escape Stasis 5 | . . . . . . . . 5 . . Rewire . | . . . . . . . . . . . Trap . | . . . . . . . . . . . Miscellaneous . | . . . . . . . . . . . Route ------- -11/Scrapyard -10/Materials (discovered 3 exits: *Mat x3) -9/Materials -8/Materials -8/Storage -8/Recycling -6/Factory -6/DSF -5/Factory -5/Waste -5/Factory History --------- Turn | Location | Event 1 | -11/Scrapyard | Released all parts (6) 4 | -11/Scrapyard | Discovered new exit (range 0) 4 | -11/Scrapyard | Entered Materials 57 | -10/Materials | Identified exit to Materials 60 | -10/Materials | Entered another Materials area 60 | -9/Materials | Evolved 2 slots: Propulsion x2 134 | -9/Materials | Discovered new exit (range 12) 138 | -9/Materials | Entered another Materials area 138 | -8/Materials | Evolved 2 slots: Utility x2 159 | -8/Materials | Discovered new exit (range 16) 164 | -8/Materials | Entered Storage 180 | -8/Storage | Used back door to open Recycling access 180 | -8/Storage | Discovered new exit (range 5) 182 | -8/Storage | Entered Recycling 195 | -8/Recycling | Spotter reported a threat 208 | -8/Recycling | Spotter reported a threat 209 | -8/Recycling | Spotter reported a threat 216 | -8/Recycling | Discovered new exit (range 17) 217 | -8/Recycling | Spotter reported a threat 221 | -8/Recycling | Entered Factory 221 | -6/Factory | Evolved 4 slots: Propulsion x2, Utility x2 229 | -6/Factory | Identified exit to DSF 230 | -6/Factory | Entered DSF 245 | -6/DSF | Discovered new exit (range 16) 249 | -6/DSF | Entered Factory 249 | -5/Factory | Evolved 2 slots: Utility x2 386 | -5/Factory | Manually triggered Chute Trap 386 | -5/Factory | Sucked down chute 386 | -5/Factory | Entered Waste 393 | -5/Waste | Spotted C-40 Crusher 396 | -5/Waste | Spotted C-40 Crusher 397 | -5/Waste | Spotted C-40 Crusher 401 | -5/Waste | EMP discharged 401 | -5/Waste | System corruption reached 10% 403 | -5/Waste | Spotted C-40 Crusher 405 | -5/Waste | Crushed by Compactor (1 part destroyed, 2 dropped) 413 | -5/Waste | Spotted C-40 Crusher 425 | -5/Waste | Discovered new exit (range 10) 427 | -5/Waste | Entered Factory 433 | -5/Factory | Build established: Sprinter 436 | -5/Factory | Lost 3 parts (2n1u) 450 | -5/Factory | Self-destructed Last Messages --------------- 00391_ ALERT: Foreign system detected. Charging EMP. 00391_ Acquired Corrupted Authchip [Power]. 00391_ Integrated Corrupted Authchip [Power] (+5). 00394_ KVWTVJ 2NN9AZ1N97UU<6JPHDT/ 00401_ System corrupted (+9). 00401_ Broken Biometal Leg fried beyond repair. 00401_ Imp. Powered Armor fried beyond repair. 00405_ Field Propulsion Drive crushed. 00405_ Neutrino Core crushed. 00405_ Field Propulsion Drive crushed. 00405_ Field Propulsion Drive destroyed. 00405_ Authchip [Power] destroyed. 00406_ Acquired Field Propulsion Drive. 00409_ System corrupted: Energy discharge (-22). 00409_ Acquired Neutrino Core. 00425_ EXIT=FOUND 00426_ ZWNA>OLVWPKY S8:K7CIFIW6U LOCATION=UNKNOWN GOAL=ESCAPE 00439_ K-01 Serf cleans the Assembly Bed. Map ----- +----------------------------------------------------+ | ?????????????????????????????????????????????????? | | ?????????????????????????????????????????????????? | | ?????????????????????????????????????????????????? | | ?????????????????????????????????????????????????? | | ?????????????????????????????????????????????????? | | ?????????????????????????????????????????????????? | | ?????????????????????????????????????????????????? | | ?????????????????????????????????????????????????? | | ?????????????????????????????????????????????????? | | ?????????????????????????????????????????????????? | | ?????????????????????????????????????????????????? | | ?????????????????????????????????????????????????? | | ?????????????????????????????????????????????????? | | ?????????????????????????????????????????????????? | | ?????????????????????????????????????????????????? | | ?????????????????????????????????????????????????? | | ?????????????????????????????????????????????????? | | ?????????????????######## ????????????????????? | | ?????????????????########+## ????????????????????? | | ????????????????? # ????????????????????? | | ??????????????????""""" # ????????????????????? | | ????????????????"""Y""" !# # #######???????? | | ????????????????? # #############???????? | | ??????????????????""" """ # ?????? | | ?????????????## """ """ + ?????? | | ?????????????##* """ """@ # ?????? | | ?????????????## ##? #########+#???????? | | ?????????????## """ """ ##? ### "" ???????? | | ?????????????## """ """ ##????????????????????? | | ?????????????## """ """ # ????????????????????? | | ?????????????## # ????????????????????? | | ?????????????#############+# ????????????????????? | | ?????????????############# # ????????????????????? | | ????????????????????????## # ????????????????????? | | ????????????????????????## ##????????????????????? | | ????????????????????????## ##????????????????????? | | ????????????????????????## ##????????????????????? | | ????????????????????????## ##????????????????????? | | ????????????????????????## ### ??????????????????? | | ## ???????????????## ### ??????????????????? | | #########???????????????## # ??????????????????? | | ########?????????## + ??????????????????? | | ####### ?????????## # ? ???????????? | | # # ?????????## ##?#+####???????????? | | # # ?????????## ##? #####????????? | | # # ?????????## ##?? #####????????? | | + + ?????????## ##? = ????????? | | # # ?????????## ##? ??????????? | | # # ?????????## ##? ??????????? | | + # ?????## ##? """"??????????? | +----------------------------------------------------+ Best States ------------- Heat Dissipation 40 Energy Generation 19 Energy Capacity 315 Matter Stores 300 Matter Capacity 300 Sight Range 18 Terrain Scan Density 210 Evasion (%) 65 Authchip Count 1 Item Schematics ----------------- None Robot Schematics ------------------ None Fabricated ------------ Nothing Alien Tech Used ----------------- None Achievements -------------- None Challenges ------------ None Game ------ Seed aerolevintegrateddoomcannon Manual? 1 Play Time 00:11:34 Cumulative 258.1 hours Start 2022.05.14 @ 17:31:06 End 2022.05.14 @ 17:57:58 Sessions 1 Manual Loads 0 Difficulty Rogue Special Mode None Game No. 399 Rogue 396 Adventurer 0 Explorer 3 Win Type - Total 9 Types 9/0/0/0/0/0/0/0/0 Lore% 71 Gallery% 75 Achievement% 63 Wizard Run 0 Options --------- ASCII 1 Keyboard 1 Movement Vi Keybinds 0 Fullscreen 1 Font 18/SmallcapsGlow Map View 76x50 Tactical HUD 1 Map Filters NONE Filters NONE Steam 1 RUN: d01c9298-4236-4876-8757-336d59226075